fUST/lending_fUST_20240419
["ID","MTS","AMOUNT","RATE_DAILY","PERIOD"]
[322949843,1713538238744,-8510.41889157,0.00027,2]
[322949844,1713538238753,-587.0,0.00027233,2]
[322949845,1713538238762,-301.78874788,0.00027244,4]
[322949846,1713538238771,-500.0,0.00027397,2]
[322949847,1713538238781,-463.35416344,0.00027397,2]
[322949848,1713538238790,-175.220194,0.00027397,2]
[322949849,1713538238799,-163.078233,0.00027397,2]
[322949850,1713538238808,-932.9128092,0.00027397,2]
[322949851,1713538238817,-162.178565,0.00027397,2]
[322949852,1713538238826,-10000.0,0.00027397,2]
[322949853,1713538238835,-755.80206996,0.000274,2]
[322949854,1713538238846,-603.57749575,0.00027702,7]
[322949855,1713538238855,-166.87710603,0.00028168,4]
[322949856,1713538238865,-1207.15499151,0.00028403,30]
[322949857,1713538238873,-823.0,0.00029957,2]
[322949858,1713538238883,-930.07258122,0.0003,4]
[322949859,1713538238893,-4342.17414183,0.0003,5]
[322949860,1713538238902,-501.39770408,0.00030136,4]
[322949861,1713538238911,-186.9934864,0.00030137,2]
[322949862,1713538238920,-162.178565,0.00030603,2]
[322949863,1713538238930,-350.42643964,0.00031,4]
[322949864,1713538238939,-221.76571967,0.00031996,2]
[322949865,1713538238949,-191.2801184,0.00032,4]
[322949866,1713538238958,-1152.0,0.00032952,2]
[322949867,1713538238967,-605.16066586,0.00033,4]
[322949868,1713538238976,-3995.09757812,0.00033,30]
[322949869,1713538238985,-976.924839,0.00033318,2]
[322949870,1713538238994,-1130.35,0.0003399,3]
[322949871,1713538239004,-941.96,0.0003399,3]
[322949872,1713538239013,-784.96,0.0003399,3]
[322949873,1713538239022,-654.14,0.0003399,3]
[322949876,1713538239127,-465.76981599,0.00034,4]
[322949878,1713538239141,-11768.8269598,0.00034,60]
[322949880,1713538239150,-167.803675,0.00034065,2]
[322949881,1713538239159,-217.02542461,0.00034337,4]
[322949882,1713538239168,-232.22195338,0.00034337,4]
[322949883,1713538239178,-155.67071799,0.00034337,4]
[322949885,1713538239187,-232.98538348,0.00034337,2]
[322949887,1713538239197,-354.39971412,0.00034337,4]
[322949889,1713538239206,-370.63536076,0.00034337,4]
[322949890,1713538239215,-397.80841471,0.00034337,4]
[322949891,1713538239225,-596.30720592,0.00034338,4]
[322949892,1713538239234,-521.11578243,0.00034338,4]
[322949893,1713538239245,-277.60171443,0.00034338,4]
[322949894,1713538239254,-24900.0,0.00034339,2]
[322949895,1713538239263,-2414.30998301,0.00034404,120]
[322949896,1713538239272,-5600.0,0.000349,9]
[322949897,1713538239281,-6878.54444506,0.00035,4]
[322949898,1713538239291,-154.87609912,0.00035,4]
[322949899,1713538239301,-597.42560339,0.00035,2]
[322949900,1713538239310,-5304.47781307,0.00035,30]
[322949901,1713538239319,-545.314152,0.00035616,120]
[322949902,1713538239328,-1613.0,0.00036248,2]
[322949903,1713538239337,-2924.56553642,0.00037,2]
[322949904,1713538239348,-157.44846143,0.00038173,7]
[322949905,1713538239357,-163.078233,0.00038356,2]
[322949906,1713538239367,-2258.0,0.00039873,3]
[322949907,1713538239376,-5312.20178267,0.0004,4]
[322949908,1713538239385,-155.25597968,0.0004,2]
[322949909,1713538239394,-150.89437394,0.00040191,2]
[322949910,1713538239403,-197.08852906,0.00041096,2]
[322949911,1713538239415,-6346.52783136,0.000411,4]
[322949912,1713538239425,-203.3901934,0.00041118,2]
[322949913,1713538239434,-203.3901934,0.00041118,2]
[322949915,1713538239443,-203.3901934,0.00041118,2]
[322949917,1713538239455,-153.0,0.00041118,2]
[322949918,1713538239465,-545.314152,0.00041553,120]
[322949919,1713538239474,-154.87609912,0.00041553,15]
[322949920,1713538239483,-155.43711806,0.00041638,4]
[322949922,1713538239493,-2715.36,0.00042,2]
[322949924,1713538239503,-153.25469597,0.00042487,30]
[322949926,1713538239512,-153.25469597,0.00042827,30]
[322949928,1713538239521,-175.220194,0.00043053,2]
[322949930,1713538239530,-153.25469597,0.00043639,30]
[322949932,1713538239539,-3162.0,0.0004386,3]
[322949934,1713538239548,-9768.01113341,0.000449,2]
[322949936,1713538239558,-153.25469597,0.00044993,30]
[322949938,1713538239569,-8735.90689153,0.00045,120]
[322949940,1713538239578,-5579.80205581,0.00045,60]
[322949942,1713538239587,-2000.0,0.00045,120]
[322949944,1713538239599,-154.87609912,0.000459,4]
[322949945,1713538239609,-153.25469597,0.00047175,30]
[322949947,1713538239618,-312.47,0.00047188,7]
[322949949,1713538239628,-153.25469597,0.00047215,30]
[322949951,1713538239640,-545.314152,0.00047489,120]
[322949954,1713538239649,-156.67054002,0.00047495,30]
[322949956,1713538239659,-153.25469597,0.00047907,30]
[322949958,1713538239667,-804.31,0.00047984,7]
[322949960,1713538239677,-235.88053171,0.00048062,4]
[322949962,1713538239686,-2127.0,0.00048246,3]
[322949964,1713538239695,-883.22,0.000487,7]
[322949966,1713538239704,-5781.40776266,0.00049,120]
[322949968,1713538239714,-163.078233,0.00049315,2]
[322949970,1713538239722,-154.87609912,0.0005,30]
[322949972,1713538239731,-8536.05857705,0.0005,120]
[322949974,1713538239741,-151.0,0.0005,120]
[322949975,1713538239750,-1000.0,0.000503,30]
[322949977,1713538239759,-1000.0,0.000506,30]
[322949978,1713538239769,-150.0,0.00051,85]
[322949979,1713538239778,-153.25469597,0.00051274,60]
[322949980,1713538239787,-2272.0698198,0.0005205,4]
[322949981,1713538239797,-926.63477986,0.00052051,4]
[322949982,1713538239807,-153.25469597,0.00052205,60]
[322949983,1713538239815,-153.25469597,0.0005221,60]
[322949984,1713538239825,-149.99999901,0.00053321,3]
[322949986,1713538239834,-545.314152,0.00053425,120]
[322949988,1713538239845,-5000.0,0.00053811,120]
[322949990,1713538239854,-5159.43370604,0.00054,120]
[322949992,1713538239863,-649.26009051,0.00054,120]
[322949994,1713538239871,-20506.36478959,0.00054243,4]
[322949996,1713538239880,-150.53610885,0.00054492,60]
[322949998,1713538239889,-155.01378089,0.00054689,3]
[322950000,1713538239898,-175.71153965,0.00054693,2]
[322950002,1713538239908,-952.54220647,0.00054694,5]
[322950004,1713538239917,-232.50525342,0.00054782,4]
[322950006,1713538239926,-784.09852565,0.00054783,4]
[322950008,1713538239935,-155.17052379,0.0005479,4]
[322950010,1713538239944,-2096.98803724,0.0005479,4]
[322950012,1713538239954,-154.95351395,0.0005479,4]
[322950014,1713538239963,-309.53569955,0.0005479,2]
[322950016,1713538239972,-688.59429255,0.0005479,4]
[322950018,1713538239982,-449.51079077,0.00054791,2]
[322950020,1713538239991,-602.61216035,0.00054791,4]
[322950022,1713538240000,-874.21747403,0.00054792,4]
[322950024,1713538240009,-2184.78488407,0.00054792,4]
[322950026,1713538240019,-203.53174733,0.00054792,4]
[322950028,1713538240028,-408.43488901,0.00054792,4]
[322950030,1713538240037,-2125.76560283,0.00054792,4]
[322950032,1713538240047,-283.57371716,0.00054792,4]
[322950034,1713538240056,-154.93802479,0.00054792,4]
[322950036,1713538240065,-68912.79465669,0.00054793,4]
[322950039,1713538240075,-13336.54904823,0.00054794,61]
[322950041,1713538240084,-500.0,0.00054794,120]
[322950043,1713538240094,-500.0,0.00054794,120]
[322950045,1713538240104,-500.0,0.00054794,120]
[322950047,1713538240113,-1093.45,0.00054794,120]
[322950049,1713538240121,-526.81,0.00054794,120]
[322950052,1713538240130,-500.0,0.00054794,120]
[322950055,1713538240139,-500.0,0.00054794,120]
[322950057,1713538240148,-500.0,0.00054794,120]
[322950060,1713538240157,-642.0626094,0.00054794,120]
[322950062,1713538240166,-335.05552604,0.00054794,2]
[322950064,1713538240175,-179.488701,0.00054794,2]
[322950066,1713538240184,-500.0,0.00054794,120]
[322950068,1713538240193,-500.0,0.00054794,120]
[322950070,1713538240203,-574.86754931,0.00054794,120]
[322950072,1713538240212,-500.0,0.00054794,120]
[322950074,1713538240220,-500.0,0.00054794,120]
[322950076,1713538240230,-500.0,0.00054794,120]
[322950078,1713538240239,-525.51,0.00054794,120]
[322950080,1713538240248,-500.0,0.00054794,120]
[322950082,1713538240257,-1706.64,0.00054794,120]
[322950084,1713538240266,-500.0,0.00054794,120]
[322950086,1713538240275,-765.4,0.00054794,120]
[322950088,1713538240284,-709.94,0.00054794,120]
[322950090,1713538240293,-500.0,0.00054794,120]
[322950092,1713538240302,-500.0,0.00054794,120]
[322950094,1713538240311,-1559.75,0.00054794,120]
[322950096,1713538240320,-500.0,0.00054794,120]
[322950097,1713538240329,-500.0,0.00054794,120]
[322950100,1713538240339,-500.0,0.00054794,120]
[322950102,1713538240352,-500.0,0.00054794,120]
[322950103,1713538240361,-500.0,0.00054794,120]
[322950105,1713538240370,-501.19253312,0.00054794,120]
[322950107,1713538240378,-500.0,0.00054794,120]
[322950109,1713538240387,-500.0,0.00054794,120]
[322950112,1713538240396,-500.0,0.00054794,120]
[322950113,1713538240406,-500.0,0.00054794,120]
[322950116,1713538240419,-500.0,0.00054794,120]
[322950118,1713538240428,-2006.79,0.00054794,120]
[322950119,1713538240437,-500.0,0.00054794,120]
[322950121,1713538240446,-500.0,0.00054794,120]
[322950124,1713538240458,-500.0,0.00054794,120]
[322950125,1713538240467,-500.0,0.00054794,120]
[322950127,1713538240476,-1271.09,0.00054794,120]
[322950129,1713538240486,-8333.35,0.00054794,120]
[322950131,1713538240495,-48045.47,0.00054794,3]
[322950133,1713538240505,-578.99,0.00054794,120]
[322950135,1713538240514,-500.0,0.00054794,120]
[322950137,1713538240523,-500.0,0.00054794,120]
[322950139,1713538240532,-551.68,0.00054794,120]
[322950141,1713538240541,-551.68,0.00054794,120]
[322950143,1713538240550,-551.68,0.00054794,120]
[322950145,1713538240559,-551.68,0.00054794,120]
[322950147,1713538240568,-551.68,0.00054794,120]
[322950149,1713538240577,-551.68,0.00054794,120]
[322950151,1713538240586,-551.68,0.00054794,120]
[322950153,1713538240598,-551.68,0.00054794,120]
[322950155,1713538240607,-551.68,0.00054794,120]
[322950157,1713538240616,-551.68,0.00054794,120]
[322950159,1713538240625,-551.68,0.00054794,120]
[322950161,1713538240635,-500.0,0.00054794,120]
[322950163,1713538240644,-1368.845474,0.00054794,7]
[322950165,1713538240653,-1000.0,0.00054794,120]
[322950167,1713538240662,-1000.0,0.00054794,120]
[322950168,1713538240671,-1000.0,0.00054794,120]
[322950169,1713538240679,-1000.0,0.00054794,120]
[322950170,1713538240688,-153.663255,0.00054794,7]
[322950171,1713538240698,-1368.845474,0.00054794,7]
[322950172,1713538240707,-1000.0,0.00054794,120]
[322950173,1713538240716,-1000.0,0.00054794,120]
[322950174,1713538240725,-1000.0,0.00054794,120]
[322950175,1713538240734,-1000.0,0.00054794,120]
[322950176,1713538240743,-415.46672798,0.00054794,120]
[322950177,1713538240752,-640.06,0.00054794,120]
[322950178,1713538240761,-467.26967395,0.00054794,120]
[322950179,1713538240775,-172.79032605,0.00054794,120]
[322950180,1713538240784,-640.06,0.00054794,120]
[322950182,1713538240793,-640.06,0.00054794,120]
[322950184,1713538240802,-640.06,0.00054794,120]
[322950185,1713538240811,-640.06,0.00054794,120]
[322950186,1713538240821,-640.06,0.00054794,120]
[322950187,1713538240830,-640.06,0.00054794,120]
[322950188,1713538240840,-640.06,0.00054794,120]
[322950189,1713538240852,-640.06,0.00054794,120]
[322950190,1713538240861,-640.06,0.00054794,120]
[322950191,1713538240872,-640.06,0.00054794,120]
[322950192,1713538240882,-2598.37,0.00054794,120]
[322950193,1713538240892,-1500.0,0.00054794,120]
[322950194,1713538240901,-858.4,0.00054794,120]
[322950195,1713538240911,-511.34,0.00054794,120]
[322950196,1713538240920,-598.96,0.00054794,120]
[322950197,1713538240928,-500.0,0.00054794,120]
[322950198,1713538240938,-151.509919,0.00054794,7]
[322950199,1713538240947,-159.309551,0.00054794,2]
[322950200,1713538240957,-150.0,0.0005497,57]
[322950201,1713538240966,-551.68,0.00054999,120]
[322950202,1713538240974,-2000.0,0.00055,120]
[322950203,1713538240983,-5000.0,0.00055,60]
[322950204,1713538240993,-153.25469604,0.00055006,120]
[322950205,1713538241002,-587.0,0.000551,30]
[322950206,1713538241011,-500.0,0.0005515,120]
[322950207,1713538241020,-157.44846145,0.00055209,120]
[322950208,1713538241029,-640.06,0.00055241,120]
[322950209,1713538241039,-640.06,0.00055241,120]
[322950210,1713538241048,-640.06,0.00055241,120]
[322950211,1713538241058,-1169.38598191,0.00055242,2]
[322950212,1713538241070,-1011.51812693,0.00055242,2]
[322950213,1713538241078,-1000.0,0.00055296,30]
[322950214,1713538241088,-210.61031249,0.0005534,2]
[322950215,1713538241100,-551.68,0.00055341,120]
[322950216,1713538241109,-551.68,0.00055341,120]
[322950217,1713538241118,-640.06,0.00055341,120]
[322950218,1713538241127,-597.22903023,0.00055341,120]
[322950219,1713538241139,-42.83096977,0.00055341,120]
[322950220,1713538241148,-640.06,0.00055341,120]
[322950221,1713538241157,-690.95,0.00055341,30]
[322950222,1713538241166,-690.95,0.00055341,30]
[322950223,1713538241175,-690.95,0.00055341,30]
[322950224,1713538241185,-690.95,0.00055341,30]
[322950225,1713538241194,-690.95,0.00055341,30]
[322950226,1713538241203,-690.95,0.00055341,30]
[322950227,1713538241213,-690.95,0.00055341,30]
[322950228,1713538241222,-690.95,0.00055341,30]
[322950229,1713538241231,-690.95,0.00055341,30]
[322950230,1713538241241,-690.95,0.00055341,30]
[322950231,1713538241250,-500.0,0.00055342,120]
[322950232,1713538241259,-500.0,0.00055342,120]
[322950233,1713538241269,-500.0,0.00055342,120]
[322950234,1713538241278,-500.0,0.00055342,120]
[322950235,1713538241287,-1093.45,0.00055342,120]
[322950236,1713538241297,-526.81,0.00055342,120]
[322950237,1713538241306,-500.0,0.00055342,120]
[322950238,1713538241316,-500.0,0.00055342,120]
[322950239,1713538241325,-500.0,0.00055342,120]
[322950240,1713538241334,-164.803092,0.00055342,120]
[322950241,1713538241346,-500.0,0.00055342,120]
[322950242,1713538241439,-364.700867,0.00055342,120]
[322950243,1713538241449,-364.700867,0.00055342,120]
[322950244,1713538241459,-372.17954063,0.00055342,120]
[322950246,1713538241499,-243.173226,0.00054794,7]
[322950248,1713538241509,-1.37888037,0.00055342,120]
[322950250,1713538241518,-525.51,0.00055342,120]
[322950252,1713538241529,-500.0,0.00055342,120]
[322950254,1713538241538,-1706.64,0.00055342,120]
[322950256,1713538241547,-177.342257,0.00055342,5]
[322950258,1713538241557,-500.0,0.00055342,120]
[322950260,1713538241566,-765.4,0.00055342,120]
[322950262,1713538241575,-709.94,0.00055342,120]
[322950264,1713538241585,-151.0,0.00055342,10]
[322950266,1713538241597,-500.0,0.00055342,120]
[322950268,1713538241606,-500.0,0.00055342,120]
[322950270,1713538241615,-1559.75,0.00055342,120]
[322950272,1713538241625,-500.0,0.00055342,120]
[322950274,1713538241636,-151.0,0.00055342,120]
[322950276,1713538241645,-500.0,0.00055342,120]
[322950278,1713538241655,-267.30797,0.00055342,120]
[322950280,1713538241664,-500.0,0.00055342,120]
[322950282,1713538241674,-151.0,0.00055342,120]
[322950284,1713538241684,-216.678596,0.00055342,120]
[322950286,1713538241693,-500.0,0.00055342,120]
[322950288,1713538241702,-151.0,0.00055342,120]
[322950290,1713538241711,-2006.79,0.00055342,120]
[322950292,1713538241720,-154.35267613,0.00055342,120]
[322950294,1713538241729,-500.0,0.00055342,120]
[322950296,1713538241738,-337.841557,0.00055342,120]
[322950298,1713538241746,-151.0,0.00055342,120]
[322950300,1713538241756,-337.841557,0.00055342,120]
[322950302,1713538241765,-505.832648,0.00055342,120]
[322950304,1713538241774,-500.0,0.00055342,120]
[322950306,1713538241785,-500.0,0.00055342,120]
[322950308,1713538241794,-505.832648,0.00055342,120]
[322950310,1713538241804,-285.942015,0.00055342,120]
[322950312,1713538241813,-285.942015,0.00055342,120]
[322950314,1713538241822,-177.01170933,0.00055342,120]
[322950537,1713538246857,-4547.4054348,0.00054478,2]
[322950538,1713538246867,-155.01378089,0.00054786,3]
[322950539,1713538246876,-157.4220682,0.00054793,4]
[322950540,1713538246886,-243.173226,0.00054794,7]
[322950541,1713538246895,-959.30020694,0.00055341,4]
[322950575,1713538430821,5600.0,0.00034242,14]
[322950576,1713538473568,1013.27756782,0.000176,2]
[322950577,1713538473601,153.37634865,0.000176,2]
[322950586,1713538669290,150.87929656,0.00023611,30]
[322950587,1713538669329,132.90129549,0.00023139,120]
[322950588,1713538669352,17.97800107,0.00023139,120]
[322950615,1713538970585,-200.0,0.00024658,15]
[322950616,1713538970595,-3707.6570454,0.0002877,120]
[322950617,1713538970605,-1207.0343725,0.00029548,30]
[322950618,1713538970614,-1997.54878906,0.00033,30]
[322950619,1713538970624,-5256.11790579,0.00034,60]
[322950620,1713538977703,214.1762478,0.00022794,2]
[322950621,1713539004413,7567.3191313,0.00022639,2]
[322950624,1713539025362,-6512.70905401,0.00034,60]
[322950654,1713539124675,1304.3249274,0.00022622,2]
[322950667,1713539235639,1207.15499151,0.00029654,30]
[322950668,1713539237186,150.89437394,0.00023696,30]
[322950669,1713539237229,150.89437394,0.00023222,120]
[322950674,1713539251674,602.88452761,0.00023099,2]
[322950676,1713539252581,354.53717402,0.00023099,2]
[322950677,1713539255410,2126.51224034,0.00023099,2]
[322950679,1713539263625,329.39846217,0.00023099,2]
[322950682,1713539267338,1489.22314453,0.00023099,2]
[322950683,1713539268859,379.62414483,0.00023099,2]
[322950734,1713539431889,-408.57291394,0.00022723,2]
[322950735,1713539431900,-2097.87546031,0.00022724,2]
[322950736,1713539431909,-154.8915759,0.00022724,2]
[322950737,1713539431919,-623.31363126,0.00022725,2]
[322950738,1713539431928,-1310.7097611,0.00022725,2]
[322950739,1713539431938,-300.0,0.00022725,2]
[322950741,1713539431947,-72510.41728967,0.00022726,2]
[322950743,1713539431957,-2733.54616305,0.00022727,2]
[322950821,1713539437863,-500.32231643,0.00022725,2]
[322950823,1713539437873,-1325.56768357,0.00022727,2]
[322950828,1713539437921,-20840.88615338,0.00022727,2]
[322950829,1713539437932,-1554.7265166,0.00022803,2]
[322950830,1713539437941,-488.46242,0.00023127,2]
[322950831,1713539437950,-175.71153965,0.00024074,2]
[322950832,1713539437960,-602.33979309,0.00024171,2]
[322950833,1713539437969,-406.36225422,0.00024171,2]
[322950834,1713539437979,-2125.01896532,0.00024171,2]
[322950835,1713539437990,-343.42443551,0.00024171,2]
[322950836,1713539437999,-782.84667527,0.00024171,2]
[322950837,1713539438009,-150.89437394,0.00024179,7]
[322950838,1713539438018,-200.0,0.00024658,2]
[322950839,1713539438027,-150.89437394,0.00024673,4]
[322950840,1713539438036,-155.43711806,0.00024717,2]
[322950841,1713539438045,-420.0,0.00024997,2]
[322950842,1713539438055,-150.89437394,0.00025176,2]
[322950843,1713539438063,-8510.41889157,0.00027,2]
[322950844,1713539438073,-500.0,0.00027397,2]
[322950845,1713539438082,-463.35416344,0.00027397,2]
[322950846,1713539438091,-236.491776,0.00027397,2]
[322950847,1713539438100,-176.980522,0.00027397,2]
[322950848,1713539438110,-164.422615,0.00027397,2]
[322950849,1713539438119,-10000.0,0.00027397,2]
[322950850,1713539438129,-932.9128092,0.00027397,2]
[322950851,1713539438138,-755.80206996,0.000274,2]
[322950852,1713539438146,-587.0,0.00027497,2]
[322950853,1713539438156,-150.89437394,0.00027974,2]
[322950855,1713539438165,-250.31565904,0.00027974,2]
[322950856,1713539438174,-301.78874788,0.00028444,4]
[322950858,1713539438183,-164.422615,0.00028466,2]
[322950860,1713539438192,-167.803675,0.00028506,2]
[322950861,1713539438201,-603.57749575,0.00028922,7]
[322950862,1713539438210,-5319.61477429,0.00029,2]
[322950873,1713539438327,-166.87710603,0.00029408,4]
[322950875,1713539438337,-164.422615,0.00029534,2]
[322950877,1713539438346,-4342.17414183,0.0003,5]
[322950879,1713539438355,-930.07258122,0.0003,4]
[322950881,1713539438365,-186.9934864,0.00030137,2]
[322950883,1713539438374,-823.0,0.00030247,2]
[322950884,1713539438383,-164.422615,0.00030603,2]
[322950886,1713539438393,-1230.45,0.00030886,3]
[322950888,1713539438401,-1156.72,0.00030886,3]
[322950890,1713539438411,-963.93,0.00030886,3]
[322950891,1713539438432,-277.60171443,0.00030896,4]
[322950893,1713539438442,-521.11578243,0.00030896,4]
[322950895,1713539438451,-232.22195338,0.00030896,4]
[322950897,1713539438460,-596.30720592,0.00030896,4]
[322950899,1713539438470,-217.02542461,0.00030896,4]
[322950901,1713539438481,-370.63536076,0.00030896,4]
[322950903,1713539438496,-397.80841471,0.00030896,4]
[322950905,1713539438505,-14523.66178643,0.00030899,2]
[322950907,1713539438514,-350.42643964,0.00031,4]
[322950909,1713539438524,-803.28,0.0003199,3]
[322950911,1713539438533,-221.76571967,0.00031996,2]
[322950913,1713539438542,-191.2801184,0.00032,4]
[322950915,1713539438552,-31321.06831637,0.00032,2]
[322950917,1713539438561,-434.1662862,0.00032142,2]
[322950919,1713539438570,-926.63477986,0.00032617,4]
[322950921,1713539438580,-605.16066586,0.00033,4]
[322950923,1713539438589,-236.491776,0.00033165,2]
[322950925,1713539438598,-1152.0,0.00033272,2]
[322950927,1713539438608,-12029.29347316,0.00033997,2]
[322950929,1713539438617,-465.76981599,0.00034,4]
[322950931,1713539438626,-2205.13637677,0.00034168,2]
[322950933,1713539438635,-41298.5660445,0.000342,2]
[322950935,1713539438644,-13336.54904823,0.00034268,5]
[322950937,1713539438653,-227140.78617521,0.00034268,14]
[322951088,1713539440116,-1847.66625098,0.00034268,14]
[322951091,1713539440130,-20626.73288571,0.00034268,14]
[322951093,1713539440143,-18457.34781456,0.00034268,14]
[322951095,1713539440156,-7488.2045,0.00034268,14]
[322953886,1713539507594,5256.11790579,0.00034,60]
[322953887,1713539533852,926.63477986,0.0002194,2]
[322953888,1713539588427,9073.36522014,0.00022035,2]
[322953889,1713539588457,4350.33520966,0.00022035,2]
[322953890,1713539611588,209.5202468,0.00033,30]
[322953891,1713539643029,167.803675,0.00021759,2]
[322953892,1713539734010,435.5733341,0.00022017,4]
[322953894,1713539839297,20046.28778124,0.00022003,2]
[322953895,1713539839333,4853.71221876,0.00022003,2]
[322953896,1713539841106,150.87929656,0.00022992,30]
[322953897,1713539841151,150.87929656,0.00022532,120]
[322953900,1713539952255,488.46242,0.00022002,2]
[322953903,1713539992768,1000.0,0.00022002,2]
[322953904,1713540010709,1000.0,0.00022002,2]
[322953905,1713540028725,612.395754,0.00022002,2]
[322953913,1713540336276,150.89437394,0.00023084,30]
[322953914,1713540336334,150.89437394,0.00022622,120]
[322953916,1713540384743,24900.0,0.00021959,2]
[322953917,1713540386172,434.1662862,0.00019935,2]
[322953918,1713540478215,244.23121,0.00021895,2]
[322953920,1713540573636,-784.09852565,0.00022788,2]
[322953921,1713540573661,-308.26347028,0.00022788,2]
[322953922,1713540573687,-549.90202406,0.00022789,2]
[322953923,1713540573713,-623.31363126,0.00022789,2]
[322953924,1713540573738,-193.45780411,0.0002279,2]
[322953925,1713540573764,-667.99263696,0.0002279,2]
[322953926,1713540573789,-154.8915759,0.0002279,2]
[322953927,1713540573813,-408.57291394,0.0002279,2]
[322953928,1713540573838,-2126.51224034,0.00022791,2]
[322953929,1713540573864,-154.8915759,0.00022792,2]
[322953930,1713540573889,-204.00475123,0.00022792,2]
[322953931,1713540573914,-205.90960079,0.00022792,2]
[322953932,1713540573941,-329.39846217,0.00022792,2]
[322953933,1713540573966,-300.0,0.00022794,2]
[322953934,1713540573991,-300.0,0.00022795,2]
[322953935,1713540574138,-169.26758099,0.00022841,2]
[322953936,1713540574166,-552.43092311,0.00022999,2]
[322953937,1713540574191,-217.02542461,0.00023095,2]
[322953938,1713540574220,-521.11578243,0.00023095,2]
[322953939,1713540574246,-232.22195338,0.00023095,2]
[322953940,1713540574275,-596.30720592,0.00023095,2]
[322953941,1713540574301,-277.60171443,0.00023095,2]
[322953942,1713540574329,-406.36225422,0.00023095,2]
[322953943,1713540574355,-602.33979309,0.00023095,2]
[322953944,1713540574382,-370.63536076,0.00023096,2]
[322953945,1713540574408,-18743.48279447,0.00023097,2]
[322953946,1713540580591,-1089.6608071,0.00022788,2]
[322953947,1713540580620,-204.62716196,0.00023095,2]
[322953948,1713540580647,-21180.10298857,0.00023097,2]
[322953949,1713540580672,-1500.0,0.00023099,2]
[322953950,1713540580698,-150.89437394,0.00023555,7]
[322953951,1713540580724,-150.89437394,0.00024036,4]
[322953952,1713540580749,-150.89437394,0.00024526,2]
[322953953,1713540580775,-200.0,0.00024658,15]
[322953954,1713540580799,-200.0,0.00024658,2]
[322953955,1713540580825,-434.1662862,0.00024935,2]
[322953956,1713540610125,-154.8915759,0.00024798,2]
[322953957,1713540628735,154.8915759,0.00024798,2]
[322953969,1713540632108,-449.51079077,0.00025073,2]
[322953971,1713540632119,-204.00475123,0.00025073,2]
[322953973,1713540632128,-549.90202406,0.00025073,2]
[322953974,1713540632137,-397.5453527,0.00025074,2]
[322953975,1713540632148,-150.89437394,0.00027252,2]
[322953976,1713540632157,-250.31565904,0.00027252,2]
[322953977,1713540632166,-175.71153965,0.00027297,2]
[322953978,1713540632175,-300.0,0.00027396,2]
[322953979,1713540632185,-8510.41889157,0.00027396,2]
[322953980,1713540632194,-166.500735,0.00027397,2]
[322953981,1713540632203,-166.692046,0.00027397,2]
[322953982,1713540632213,-1000.0,0.00027397,2]
[322953983,1713540632222,-10000.0,0.00027397,2]
[322953984,1713540632232,-163.142994,0.00027397,2]
[322953985,1713540632242,-166.666666,0.00027397,2]
[322953986,1713540632253,-301.78874788,0.0002771,4]
[322953987,1713540632262,-200.0,0.00027812,15]
[322953988,1713540632271,-166.666666,0.00028038,2]
[322953989,1713540632280,-603.57749575,0.00028175,7]
[322953990,1713540632290,-166.87710603,0.00028649,4]
[322953991,1713540632299,-166.666666,0.00028679,2]
[322953992,1713540632308,-1207.15499151,0.00028889,30]
[322953993,1713540632319,-166.666666,0.00029321,2]
[322953994,1713540632329,-166.666666,0.00029962,2]
[322953995,1713540632338,-1242.51023488,0.0003,4]
[322953996,1713540632348,-930.07258122,0.00030136,4]
[322953997,1713540632357,-420.0,0.00030136,2]
[322953998,1713540632366,-186.9934864,0.00030137,2]